bitfinex/quotes_SOLUSD_20240920
["timestamp","ask_amount","ask_price","bid_price","bid_amount"]
[1726807085739,6.8203,146.62,146.61,8.8127]
[1726807086029,6.8207,146.62,146.57,8.8135]
[1726807086928,6.8204,146.62,146.57,8.8135]
[1726807087136,17.3103657,146.66,146.57,8.8135]
[1726807087324,24.027864,146.65,146.57,8.8135]
[1726807087628,6.8218,146.59,146.57,8.8135]
[1726807087832,6.8222,146.58,146.55,22.2514]
[1726807089605,6.8218,146.59,146.55,22.2514]
[1726807090035,6.8203,146.62,146.56,6.8229]
[1726807090335,45.760274,146.65,146.55,39.31]
[1726807090538,6.8214,146.6,146.55,39.31]
[1726807091356,6.8214,146.6,146.56,1.36425177]
[1726807091534,6.8214,146.6,146.55,39.31]
[1726807092155,6.8217,146.59,146.55,22.2514]
[1726807092340,6.8227,146.57,146.55,22.2514]
[1726807093033,6.8222,146.58,146.55,22.2514]
[1726807093855,6.8215,146.6,146.55,22.2514]
[1726807095926,6.8218,146.59,146.55,22.2514]
[1726807097849,6.8223,146.58,146.55,22.2514]
[1726807098046,6.8228,146.57,146.55,22.2514]
[1726807098433,6.8228,146.57,146.54,0.12549]
[1726807099155,6.8232,146.56,146.53,8.9982]
[1726807100452,6.8222,146.58,146.54,1.36455502]
[1726807100649,6.8218,146.59,146.55,0.12549]
[1726807101346,6.8218,146.59,146.54,0.25098]
[1726807101952,17.0504,146.63,146.54,0.25098]
[1726807102343,17.0504,146.63,146.54,50.25098]
[1726807102344,6.8217,146.59,146.54,50.25098]
[1726807102538,6.8217,146.59,146.54,57.07488]
[1726807102742,0.12549,146.64,146.58,0.25098]
[1726807102934,6.94499,146.64,146.6,0.12549]
[1726807103139,6.94499,146.64,146.6,0.25098]
[1726807103353,6.819,146.65,146.6,24.12478]
[1726807104034,6.8194,146.64,146.6,17.30358]
[1726807104447,6.8198,146.63,146.59,8.8988]
[1726807104961,0.2632657,146.66,146.6,74.153354]
[1726807105759,6.8193,146.65,146.6,74.153354]
[1726807105933,6.8195,146.64,146.6,24.153354]
[1726807106252,6.8195,146.64,146.6,74.153354]
[1726807106454,6.8189,146.65,146.6,74.153354]
[1726807106653,0.2632657,146.66,146.62,0.12549]
[1726807106854,0.2632657,146.66,146.63,22.9961]
[1726807107043,0.2632657,146.66,146.64,1.48907177]
[1726807107241,0.2632657,146.66,146.65,8.71939]
[1726807107956,0.2632657,146.66,146.65,8.5939]
[1726807108157,7.0816657,146.66,146.65,8.5939]
[1726807108456,6.8191,146.65,146.63,22.9961]
[1726807108755,6.8191,146.65,146.61,8.4005]
[1726807108959,6.8196,146.64,146.61,8.4005]
[1726807109136,0.2632657,146.66,146.63,69.55535393]
[1726807109336,0.2632657,146.66,146.64,0.12549]
[1726807109658,0.2632657,146.66,146.64,24.153354]
[1726807110040,0.2632657,146.66,146.64,0.12549]
[1726807110250,0.2632657,146.66,146.62,24.153354]
[1726807110551,0.2632657,146.66,146.61,8.4005]
[1726807110552,6.8199,146.63,146.61,8.4005]
[1726807110753,6.8189,146.65,146.61,8.4005]
[1726807111057,0.2632657,146.66,146.61,58.4005]
[1726807111239,0.2632657,146.66,146.61,8.4005]
[1726807112261,6.819,146.65,146.61,8.4005]
[1726807112634,7.0818657,146.66,146.62,1.36374175]
[1726807113232,0.2632657,146.66,146.62,0.25098]
[1726807113450,0.2632657,146.66,146.64,0.25098]
[1726807114552,0.2632657,146.66,146.64,0.12549]
[1726807114860,7.0817657,146.66,146.63,0.12549]
[1726807115356,0.2632657,146.66,146.63,0.12549]
[1726807115957,6.8189,146.65,146.61,58.4005]
[1726807116148,6.8195,146.64,146.61,8.4005]
[1726807118940,0.2632657,146.66,146.61,8.4005]
[1726807118941,6.8199,146.63,146.61,8.4005]
[1726807119349,6.8194,146.64,146.61,8.4005]
[1726807119550,0.2632657,146.66,146.62,1.36388085]
[1726807119954,7.0817657,146.66,146.63,0.12549]
[1726807120151,7.0817657,146.66,146.61,65.2208]
[1726807120364,0.2632657,146.66,146.61,8.4005]
[1726807120671,7.0821657,146.66,146.62,0.12549]
[1726807120841,6.8195,146.64,146.61,8.4005]
[1726807121460,6.8189,146.65,146.61,8.4005]
[1726807122859,0.2632657,146.66,146.64,0.12549]
[1726807123062,0.2632657,146.66,146.65,0.12549]
[1726807123264,0.2632657,146.66,146.65,102.33557763]
[1726807123455,0.2632657,146.66,146.65,123.917054]
[1726807124950,0.2632657,146.66,146.65,117.098154]
[1726807125149,0.2632657,146.66,146.65,23.07029]
[1726807125467,0.2632657,146.66,146.63,17.0491]
[1726807126369,7.0817657,146.66,146.63,0.12549]
[1726807127765,0.2632657,146.66,146.63,0.12549]
[1726807128147,7.0817657,146.66,146.63,0.12549]
[1726807128450,0.2632657,146.66,146.61,80.9888]
[1726807128653,0.2632657,146.66,146.62,8.18391773]
[1726807129468,0.2632657,146.66,146.63,56.8197]
[1726807129673,0.2632657,146.66,146.64,1.36346991]
[1726807129968,0.2632657,146.66,146.65,1.3634715]
[1726807130162,0.2632657,146.66,146.63,50.0]
[1726807130361,0.2632657,146.66,146.64,0.12549]
[1726807130674,7.0817657,146.66,146.61,87.8095]
[1726807130965,7.0817657,146.66,146.62,24.153354]
[1726807131768,7.0817657,146.66,146.62,0.25098]
[1726807133176,1.18725203,146.84,146.79,50.37647]
[1726807133378,0.0658799,146.82,146.79,164.49364058]
[1726807133671,232.34659035,146.89,146.88,80.710574]
[1726807133875,232.50846125,146.89,146.88,100.710574]
[1726807135262,232.50846125,146.89,146.88,100.961554]
[1726807135468,232.50846125,146.89,146.88,94.153354]
[1726807136973,232.50846125,146.89,146.88,44.153354]
[1726807137176,232.50846125,146.89,146.88,124.153354]
[1726807137782,232.50846125,146.89,146.88,124.027864]
[1726807138270,232.50846125,146.89,146.88,30.12549]
[1726807139977,232.50846125,146.89,146.88,30.0]
[1726807141370,232.50846125,146.89,146.88,30.12549]
[1726807142085,232.50846125,146.89,146.88,30.0]
[1726807142250,232.50846125,146.89,146.86,50.0]
[1726807142456,232.50846125,146.89,146.87,0.25098]
[1726807142759,232.50846125,146.89,146.87,7.05968]
[1726807143982,232.50846125,146.89,146.87,24.027864]
[1726807146257,232.50846125,146.89,146.88,0.12549]
[1726807146662,232.50846125,146.89,146.88,57.05918]
[1726807146854,232.50846125,146.89,146.88,100.961554]
[1726807148285,232.50846125,146.89,146.88,107.793554]
[1726807148461,232.50846125,146.89,146.88,87.793554]
[1726807148990,232.50846125,146.89,146.88,107.793554]
[1726807151490,232.50846125,146.89,146.88,145.72944058]
[1726807151784,232.50846125,146.89,146.88,147.09061597]
[1726807152080,106.43131134,146.89,146.88,162.04414058]
[1726807153481,106.30591134,146.89,146.88,162.04414058]
[1726807154982,106.30591134,146.89,146.88,192.04414058]
[1726807155188,106.30591134,146.89,146.88,129.7584]
[1726807155393,106.30591134,146.89,146.88,99.7584]
[1726807155684,0.3371833,146.91,146.9,73.8256]
[1726807155864,0.3670197,146.97,146.9,73.8256]
[1726807155865,0.3670197,146.97,146.96,76.8045]
[1726807156066,0.3670197,146.97,146.96,93.8159]
[1726807156386,0.3670197,146.97,146.96,100.6479]
[1726807157270,0.3670197,146.97,146.96,102.0082519]
[1726807157466,0.3670197,146.97,146.96,100.6479]
[1726807157879,0.3670197,146.97,146.96,124.801254]
[1726807158368,0.3670197,146.97,146.96,117.969254]
[1726807158569,0.3670197,146.97,146.96,124.801254]
[1726807159484,0.0658799,146.99,146.98,84.01207]
[1726807159679,0.0658799,146.99,146.98,139.08934058]
[1726807161391,105.587058,147.0,146.99,51.01947]
[1726807161608,105.587058,147.0,146.99,74.796354]
[1726807161773,105.7220952,147.0,146.99,74.796354]
[1726807164884,105.7220952,147.0,146.99,61.161254]
[1726807165088,105.7220952,147.0,146.99,37.38437]
[1726807165592,0.049111,147.01,147.0,50.0]
[1726807165798,0.46546701,147.04,147.03,111.031164]
[1726807166090,0.0957163,147.06,147.05,107.660264]
[1726807167794,0.0957163,147.06,147.05,107.785754]
[1726807168579,0.0957163,147.06,147.05,109.14495994]
[1726807169074,0.0957163,147.06,147.05,107.785754]
[1726807169786,0.0957163,147.06,147.05,109.14491038]
[1726807171087,0.0957163,147.06,147.05,107.785754]
[1726807171484,0.0957163,147.06,147.05,109.14499719]
[1726807171688,0.0957163,147.06,147.05,137.785754]
[1726807172012,0.0957163,147.06,147.05,130.953754]
[1726807172375,0.0658799,147.08,147.07,56.832]
[1726807172578,0.4503252,147.16,147.09,56.7985]
[1726807172805,0.4503252,147.16,147.09,100.826364]
[1726807173186,7.2456252,147.16,147.09,100.826364]
[1726807174686,0.4503252,147.16,147.09,107.783854]
[1726807175386,0.4503252,147.16,147.1,67.946554]
[1726807175603,0.4503252,147.16,147.1,106.07894058]
[1726807175803,0.4503252,147.16,147.15,124.393984]
[1726807177400,0.4503252,147.16,147.15,124.770454]
[1726807181794,0.0658799,147.17,147.16,50.948654]
[1726807182010,439.42389669,147.2,147.19,97.555584]
[1726807182218,439.42389669,147.2,147.19,117.681074]
[1726807182782,439.42389669,147.2,147.19,124.513074]
[1726807183306,439.42389669,147.2,147.19,185.81346058]
[1726807183307,248.89404449,147.2,147.19,185.81346058]
[1726807183515,248.89404449,147.2,147.19,155.60737094]
[1726807183688,248.89404449,147.2,147.19,154.638564]
[1726807184313,248.89404449,147.2,147.19,168.306564]
[1726807184609,245.54280262,147.2,147.19,199.60695058]
[1726807184911,139.47743577,147.2,147.19,206.43895058]
[1726807185114,135.27743577,147.2,147.19,206.43895058]
[1726807185297,0.4357901,147.25,147.24,93.7706]
[1726807185613,0.0658799,147.26,147.24,93.7706]
[1726807185614,0.0658799,147.26,147.25,52.17234947]
[1726807185794,0.5932083,147.33,147.32,70.0]
[1726807187092,0.5932083,147.33,147.32,50.0]
[1726807187289,0.5932083,147.33,147.32,50.12549]
[1726807187503,0.5932083,147.33,147.32,51.35692463]
[1726807187806,0.5932083,147.33,147.32,50.0]
[1726807188513,6.7879,147.32,147.29,50.0]
[1726807188708,7.3807083,147.33,147.31,50.0]
[1726807189088,0.5932083,147.33,147.29,50.0]
[1726807189409,6.7886,147.31,147.29,50.0]
[1726807189603,16.2541,147.32,147.31,50.0]
[1726807189804,16.2541,147.32,147.28,50.0]
[1726807190114,6.7888,147.31,147.28,50.0]
[1726807190406,16.2541,147.32,147.3,50.0]
[1726807190407,23.042,147.32,147.3,50.0]
[1726807190596,16.2541,147.32,147.28,50.0]
[1726807191109,6.7888,147.3,147.28,50.0]
[1726807191817,33.2242,147.32,147.25,50.0]
[1726807191991,16.2541,147.32,147.3,50.0]
[1726807192588,16.2541,147.32,147.3,66.972]
[1726807192915,16.2541,147.32,147.3,50.0]
[1726807194100,16.2541,147.32,147.3,56.7888]
[1726807194702,16.2541,147.32,147.3,50.0]
[1726807196012,0.5932083,147.33,147.32,50.0]
[1726807197496,0.5932083,147.33,147.32,50.12549]
[1726807197801,0.5932083,147.33,147.32,50.0]
[1726807200816,7.3806083,147.33,147.32,50.0]
[1726807201117,6.7897,147.28,147.27,50.0]
[1726807201319,17.5626083,147.33,147.31,50.0]
[1726807201320,0.5932083,147.33,147.31,50.0]
[1726807201531,0.5932083,147.33,147.31,56.7883]
[1726807201815,0.5932083,147.33,147.32,6.7879]
[1726807202220,0.5932083,147.33,147.31,50.0]
[1726807202431,0.5932083,147.33,147.32,6.7879]
[1726807203311,0.5932083,147.33,147.32,26.7879]
[1726807203803,0.5932083,147.33,147.32,27.16437]
[1726807204614,0.5932083,147.33,147.32,27.03888]
[1726807204815,0.5932083,147.33,147.31,56.7883]
[1726807205126,0.5932083,147.33,147.32,8.14488731]
[1726807205322,0.5932083,147.33,147.31,50.0]
[1726807206023,0.5932083,147.33,147.32,6.7879]
[1726807206201,0.5932083,147.33,147.32,7.03888]
[1726807207512,0.5932083,147.33,147.32,7.16437]
[1726807207920,0.5932083,147.33,147.32,27.16437]
[1726807208200,0.5932083,147.33,147.32,28.52137387]
[1726807208530,0.5932083,147.33,147.32,33.99637]
[1726807210026,0.5932083,147.33,147.32,63.99637]
[1726807211615,0.5932083,147.33,147.32,33.99637]
[1726807211926,0.5932083,147.33,147.32,57.773254]
[1726807212312,0.5932083,147.33,147.32,60.490851]
[1726807212830,0.0658799,147.35,147.34,100.96297]
[1726807213303,0.0658799,147.35,147.34,102.31962517]
[1726807213939,0.0658799,147.35,147.34,132.31962517]
[1726807214227,0.33927,147.38,147.37,100.5817]
[1726807214431,0.33927,147.38,147.37,117.777564]
[1726807214614,0.5932083,147.41,147.4,73.7448]
[1726807214818,0.5932083,147.41,147.4,117.772664]
[1726807215234,0.5932083,147.41,147.4,93.99578]
[1726807215435,0.5932083,147.41,147.4,154.604664]
[1726807215632,0.5932083,147.41,147.4,175.104664]
[1726807215833,0.5932083,147.41,147.4,154.604664]
[1726807216327,0.5932083,147.41,147.4,132.82643229]
[1726807216628,0.5932083,147.41,147.4,102.82643229]
[1726807218537,0.5932083,147.41,147.4,131.53951506]
[1726807219724,0.2170083,147.41,147.4,132.89553209]
[1726807219928,0.2170083,147.41,147.4,161.53951506]
[1726807223248,18.3172,147.48,147.44,83.86538]
[1726807223416,18.3172,147.48,147.44,83.99087]
[1726807223920,5.5932083,147.5,147.44,83.99087]
[1726807226153,5.5932083,147.5,147.49,80.81338]
[1726807226453,5.5932083,147.5,147.49,100.81338]
[1726807226620,5.5932083,147.5,147.49,100.93887]
[1726807226810,5.5932083,147.5,147.49,77.08298]
[1726807227946,5.5932083,147.5,147.49,83.86308]
[1726807228636,5.5932083,147.5,147.49,83.98857]
[1726807228846,5.5932083,147.5,147.49,76.832]
[1726807229048,5.5932083,147.5,147.49,50.0]
[1726807229342,5.5932083,147.5,147.45,50.0]
[1726807229534,7.715,147.48,147.47,50.0]
[1726807229843,7.715,147.48,147.45,50.0]
[1726807230163,6.7815,147.46,147.45,50.0]
[1726807230311,6.7811,147.47,147.45,50.0]
[1726807230513,7.715,147.48,147.45,50.0]
[1726807230847,6.7811,147.47,147.45,50.0]
[1726807231342,6.7824,147.44,147.43,56.832]
[1726807231512,19.2835,147.45,147.41,50.0]
[1726807231930,6.7838,147.41,147.4,6.832]
[1726807232141,6.7828,147.43,147.42,50.0]
[1726807232334,6.7824,147.44,147.4,50.0]
[1726807232540,19.2835,147.46,147.42,50.0]
[1726807232847,6.7819,147.45,147.42,50.0]
[1726807233019,19.2835,147.46,147.44,50.0]
[1726807233221,5.5932083,147.5,147.49,50.0]
[1726807233423,5.5932083,147.5,147.49,63.6121]
[1726807233730,5.5932083,147.5,147.49,77.03108]
[1726807234319,5.5932083,147.5,147.49,77.15657]
[1726807234539,5.5932083,147.5,147.49,83.98857]
[1726807236041,5.5932083,147.5,147.49,83.6121]
[1726807237233,5.5932083,147.5,147.49,56.832]
[1726807237434,5.5932083,147.5,147.49,76.832]
[1726807237947,5.5932083,147.5,147.49,56.832]
[1726807238957,5.5932083,147.5,147.45,50.0]
[1726807239122,12.3728083,147.5,147.45,50.0]
[1726807239651,5.5932083,147.5,147.47,50.0]
[1726807240548,5.5932083,147.5,147.47,56.7809]
[1726807240918,5.5932083,147.5,147.49,50.0]
[1726807241118,5.5932083,147.5,147.47,50.0]
[1726807241461,7.6716,147.48,147.45,50.0]
[1726807241959,14.4522,147.48,147.45,50.0]
[1726807242459,7.6716,147.48,147.45,50.0]
[1726807242761,7.6716,147.48,147.45,56.7818]
[1726807242939,7.6716,147.48,147.47,50.0]
[1726807243360,5.5932083,147.5,147.47,50.0]
[1726807243955,5.5932083,147.5,147.49,50.0]
[1726807244142,5.0,147.5,147.49,56.7801]
[1726807244462,5.4385739,147.5,147.49,77.15657]
[1726807244834,4.2585739,147.5,147.49,78.51214152]
[1726807245160,473.14609408,147.51,147.5,50.81168]
[1726807245349,458.72476234,147.51,147.5,50.93717]
[1726807245553,454.82476234,147.51,147.5,50.93717]
[1726807245842,400.76176234,147.51,147.5,50.93717]
[1726807246045,346.76176234,147.51,147.5,50.93717]
[1726807246434,293.76176234,147.51,147.5,50.93717]
[1726807246739,239.76176234,147.51,147.5,50.93717]
[1726807246934,185.76176234,147.51,147.5,50.93717]
[1726807247357,131.76176234,147.51,147.5,50.93717]
[1726807247761,77.76176234,147.51,147.5,59.15025277]
[1726807248062,24.00316634,147.51,147.5,59.15025277]
[1726807248360,22.00518644,147.51,147.5,60.98310875]
[1726807248659,0.0658799,147.52,147.51,63.6112]
[1726807248964,0.0658799,147.52,147.51,83.98767]
[1726807249544,0.0658799,147.52,147.51,113.98767]
[1726807250270,0.4727768,147.55,147.51,113.98767]
[1726807250271,0.4727768,147.55,147.54,80.5543]
[1726807250561,0.4727768,147.55,147.54,102.2855178]
[1726807251167,0.0684931,147.58,147.57,80.5495]
[1726807251347,0.0684931,147.58,147.57,100.92597]
[1726807252955,0.0684931,147.58,147.57,103.63888]
[1726807253153,0.0684931,147.58,147.57,130.92597]
[1726807253746,0.0684931,147.58,147.57,139.13905277]
[1726807254165,0.27,147.6,147.59,104.48397]
[1726807254360,0.4727768,147.63,147.59,104.48397]
[1726807254361,0.4727768,147.63,147.6,50.79558]
[1726807254575,0.4727768,147.63,147.62,63.6061]
[1726807254742,0.4727768,147.63,147.62,83.85708]
[1726807256475,0.0957163,147.67,147.66,100.91147]
[1726807256760,0.0957163,147.67,147.66,86.9307]
[1726807256939,0.0957163,147.67,147.66,50.0]
[1726807257339,0.0957163,147.67,147.66,56.7723]
[1726807257762,6.7736,147.63,147.6,50.0]
[1726807258060,27.4031163,147.67,147.57,50.0]
[1726807258061,6.7751,147.6,147.57,50.0]
[1726807258267,6.7756,147.59,147.55,50.0]
[1726807258564,51.084284,147.65,147.55,50.0]
[1726807258757,16.9341,147.64,147.55,50.0]
[1726807258956,23.776884,147.63,147.55,50.0]
[1726807259270,34.0843,147.56,147.55,50.0]
[1726807259448,34.0843,147.56,147.53,50.0]
[1726807259851,27.3074,147.56,147.55,50.0]
[1726807260204,27.3074,147.56,147.53,50.0]
[1726807260544,34.0845,147.56,147.53,50.0]
[1726807260961,27.3074,147.56,147.55,50.0]
[1726807261847,6.7773,147.55,147.53,50.0]
[1726807262363,6.7773,147.55,147.51,50.0]
[1726807262860,34.0843,147.56,147.53,50.0]
[1726807263045,27.3074,147.56,147.53,50.0]
[1726807263242,34.0844,147.56,147.53,50.0]
[1726807263768,34.0844,147.56,147.5,13.89888523]
[1726807263769,27.3074,147.56,147.55,50.0]
[1726807263978,19.6046,147.56,147.55,50.0]
[1726807264180,7.2684,147.6,147.57,50.0]
[1726807264487,14.0434,147.6,147.57,50.0]
[1726807264857,7.2684,147.6,147.58,1.35500269]
[1726807265067,7.2684,147.6,147.57,50.0]
[1726807265652,6.776,147.58,147.55,50.0]
[1726807266468,6.7764,147.57,147.53,50.0]
[1726807266849,6.7758,147.59,147.55,50.0]
[1726807267390,7.2684,147.6,147.57,50.0]
[1726807267706,16.932,147.65,147.56,1.35510481]
[1726807267707,29.8301,147.65,147.59,16.9387]
[1726807267881,6.7738,147.63,147.61,50.0]
[1726807268066,6.7738,147.63,147.59,50.0]
[1726807268260,29.8301,147.65,147.57,50.0]
[1726807268765,6.7752,147.6,147.57,50.0]
[1726807269160,6.7755,147.59,147.57,50.0]
[1726807269486,23.776884,147.63,147.55,50.0]
[1726807269660,29.8301,147.65,147.57,56.7764]
[1726807269861,29.8301,147.65,147.54,6.832]
[1726807269862,29.8301,147.65,147.61,50.0]
[1726807270165,36.603,147.65,147.62,1.35458236]
[1726807270358,36.6029,147.65,147.62,1.35458236]
[1726807270695,36.6029,147.65,147.61,56.7746]
[1726807271181,36.603,147.65,147.61,50.0]
[1726807271372,29.8301,147.65,147.63,50.0]
[1726807271575,29.8301,147.65,147.64,1.35449658]
[1726807273189,0.0957163,147.67,147.66,50.0]
[1726807273357,0.0957163,147.67,147.66,56.7723]
[1726807273767,0.0957163,147.67,147.66,50.0]
[1726807273983,0.0957163,147.67,147.64,50.0]
[1726807274767,0.0957163,147.67,147.66,50.0]
[1726807275877,0.0957163,147.67,147.64,66.932]
[1726807276068,0.0957163,147.67,147.64,73.7052]
[1726807277166,0.0957163,147.67,147.64,73.7051]
[1726807278162,6.8675163,147.67,147.64,50.0]
[1726807278579,6.7729,147.65,147.62,50.0]
[1726807278778,0.0957163,147.67,147.62,50.0]
[1726807279181,6.7723,147.66,147.62,50.0]
[1726807279392,6.7728,147.65,147.62,50.0]
[1726807279693,6.7724,147.66,147.62,50.0]
[1726807280081,0.0957163,147.67,147.64,50.0]
[1726807280396,0.0957163,147.67,147.62,66.9343]
[1726807280904,6.7728,147.65,147.62,50.0]
[1726807281193,6.7732,147.64,147.6,50.0]
[1726807281398,6.7747,147.61,147.56,73.7182]
[1726807282070,6.7747,147.61,147.57,6.7763]
[1726807282293,31.3932,147.62,147.56,50.0]
[1726807282500,23.776884,147.61,147.54,50.0]
[1726807282676,6.7773,147.56,147.54,50.0]
[1726807282877,16.9377,147.6,147.51,50.0]
[1726807283092,23.776884,147.57,147.49,66.9495]
[1726807283283,6.7782,147.54,147.49,66.9495]
[1726807283684,8.969,147.56,147.49,50.0]
[1726807283887,8.969,147.56,147.5,6.7796]
[1726807284391,8.969,147.56,147.51,56.7791]
[1726807285097,30.5259,147.66,147.57,50.0]
[1726807285277,30.5259,147.66,147.6,66.9373]
[1726807285478,30.5259,147.66,147.63,66.934]
[1726807285776,30.5259,147.66,147.65,56.7727]
[1726807285987,21.8237,147.66,147.63,66.934]
[1726807286175,21.8237,147.66,147.63,73.7076]
[1726807286770,28.596,147.66,147.61,50.0]
[1726807286970,28.596,147.66,147.61,56.7745]
[1726807287795,21.8237,147.66,147.59,66.9377]
[1726807287976,6.7731,147.65,147.59,50.0]
[1726807288177,21.8237,147.66,147.59,50.0]
[1726807288590,21.8237,147.66,147.61,6.7745]
[1726807289603,0.0957163,147.67,147.66,6.7723]
[1726807290974,0.0957163,147.67,147.66,8.12635201]
[1726807291489,0.0957163,147.67,147.66,6.7723]
[1726807293201,0.0957163,147.67,147.66,8.12635318]
[1726807293509,0.0957163,147.67,147.66,35.33482318]
[1726807293701,0.0957163,147.67,147.66,66.63520976]
[1726807294078,0.0957163,147.67,147.66,65.28115658]
[1726807295005,21.473073,147.75,147.71,50.0]
[1726807295184,21.473073,147.75,147.72,6.7695]
[1726807295386,21.473073,147.75,147.71,56.77]
[1726807296203,21.473073,147.75,147.73,50.0]
[1726807297509,21.473073,147.75,147.74,16.9216]
[1726807298381,21.473073,147.75,147.73,50.0]
[1726807299987,0.0957163,147.76,147.73,56.7689]
[1726807301900,6.7682,147.75,147.71,50.0]
[1726807302208,0.0957163,147.76,147.74,50.0]
[1726807304710,0.0957163,147.76,147.75,1.35339412]
[1726807305114,0.0957163,147.76,147.74,66.9207]
[1726807305814,0.0957163,147.76,147.74,50.0]
[1726807307197,0.0957163,147.76,147.75,28.37256617]
[1726807307393,0.0957163,147.76,147.75,58.44495658]
[1726807307717,0.0957163,147.76,147.75,33.85108]
[1726807307912,0.0957163,147.76,147.75,33.6001]
[1726807308206,0.0957163,147.76,147.75,26.7681]
[1726807308421,0.0957163,147.76,147.75,6.7681]
[1726807308626,0.0957163,147.76,147.74,50.0]
[1726807311301,0.0957163,147.76,147.74,56.832]
[1726807311500,0.0957163,147.76,147.74,63.6005]
[1726807311912,0.0957163,147.76,147.74,50.0]
[1726807312292,0.0957163,147.76,147.72,50.0]
[1726807312491,6.8634163,147.76,147.72,50.0]
[1726807312734,0.0957163,147.76,147.72,50.0]
[1726807313217,0.0957163,147.76,147.74,50.0]
[1726807313600,0.0957163,147.76,147.72,50.0]
[1726807313812,0.0957163,147.76,147.7,50.0]
[1726807314312,0.0957163,147.76,147.69,6.832]
[1726807315118,6.7691,147.73,147.69,6.832]
[1726807315292,6.7687,147.74,147.69,13.6029]
[1726807315489,6.7687,147.74,147.7,51.35386002]
[1726807315718,6.7682,147.75,147.71,1.3537406]
[1726807315925,6.5251963,147.76,147.72,50.0]
[1726807316115,30.9806,147.78,147.74,50.0]
[1726807316416,30.9806,147.78,147.72,66.9232]
[1726807316712,22.2961,147.78,147.76,50.0]
[1726807317216,22.2961,147.78,147.76,56.7672]
[1726807317512,0.5291839,147.79,147.78,56.7668]
[1726807317815,0.5291839,147.79,147.78,50.0]
[1726807318718,0.5291839,147.79,147.74,56.832]
[1726807319010,7.2958839,147.79,147.74,56.832]
[1726807319416,0.5291839,147.79,147.77,50.0]
[1726807321604,6.7668,147.78,147.74,56.832]
[1726807321917,7.2955839,147.79,147.74,63.6005]
[1726807322096,6.7668,147.78,147.74,56.832]
[1726807322294,7.2955839,147.79,147.75,1.3533828]
[1726807322607,0.5291839,147.79,147.76,50.0]
[1726807322811,7.2954839,147.79,147.76,50.0]
[1726807323117,381.76479147,147.82,147.81,102.42817]
[1726807323317,7.42451946,147.82,147.81,192.79095009]
[1726807323496,2.00465407,147.86,147.85,93.6726]
[1726807323689,0.0957163,147.93,147.87,76.7626]
[1726807325314,0.0957163,147.93,147.87,6.7626]
[1726807325512,0.0957163,147.93,147.87,77.13907]
[1726807325829,0.0957163,147.93,147.87,77.01358]
[1726807326006,0.0957163,147.93,147.87,77.13907]
[1726807326206,0.0957163,147.93,147.87,76.7626]
[1726807326826,0.0957163,147.93,147.87,50.0]
[1726807327307,0.0957163,147.93,147.87,70.0]
[1726807327499,24.3374927,147.88,147.87,70.0]
[1726807327894,24.3374927,147.88,147.87,71.3521815]
[1726807328118,0.5606087,147.88,147.87,71.7286515]
[1726807328322,0.5606087,147.88,147.87,70.37647]
[1726807328700,0.5606087,147.88,147.87,78.93886351]
[1726807328904,0.5606087,147.88,147.87,89.12729217]
[1726807329331,0.0957163,147.93,147.9,127.84767]
[1726807329622,0.0957163,147.93,147.9,136.41006351]
[1726807329796,0.0957163,147.93,147.9,127.84767]
[1726807330124,0.0957163,147.93,147.9,93.79009]
[1726807330615,0.0957163,147.93,147.9,94.04107]
[1726807331014,0.0957163,147.93,147.9,93.6646]
[1726807331210,0.0957163,147.93,147.9,93.79009]
[1726807332298,0.0957163,147.93,147.9,94.04107]
[1726807332505,0.0957163,147.93,147.88,50.0]
[1726807332506,23.876884,147.91,147.88,50.0]
[1726807333116,0.1,147.91,147.88,50.0]
[1726807333310,0.1,147.91,147.89,50.0]